Cogmind - Beta 10.2 *** ADVENTURER MODE // 2021.08.10 @ 22:29:55 Player: Ender Result: Core destroyed Performance ------------- Evolutions (2) 1000 Regions Visited (6) 1200 Robots Destroyed (0) 0 Value Destroyed (0) 0 Prototype IDs (0) 0 Alien Tech Used (0) 0 Bonus (470) 470 TOTAL SCORE: 2670 Bonus ------- Pacifist 470 Cogmind --------- Core Integrity 0/550 Matter 211/300 Energy 100/100 System Corruption 0% Temperature Cool (0) Movement Core (50) Location -8/Storage Parts ------- > --- POWER (3) -------- (None) > --- PROPULSION (4) --- (None) > --- UTILITY (2) ------ (None) > --- WEAPON (2) ------- (None) > --- INVENTORY (4) ---- (None) Peak State ------------ None Favorites ----------- Power None Propulsion None Utility None Weapon None Build | -11 -10 -10 -9 -9 -8 -8 ------- Run | Scr Mat Min Mat Min Mat Sto Slots Evolved 4 | . . . 2 . 2 . Power 2 | . . . 1 . 1 . Propulsion 2 | . . . 1 . 1 . Utility . | . . . . . . . Weapon . | . . . . . . . Parts Attached . | . . . . . . . Power . | . . . . . . . Engine . | . . . . . . . Core . | . . . . . . . Reactor . | . . . . . . . Propulsion . | . . . . . . . Treads . | . . . . . . . Leg . | . . . . . . . Wheel . | . . . . . . . Hover . | . . . . . . . Flight . | . . . . . . . Utility . | . . . . . . . Device . | . . . . . . . Storage . | . . . . . . . Processor . | . . . . . . . Hackware . | . . . . . . . Protection . | . . . . . . . Artifact . | . . . . . . . Weapon . | . . . . . . . Energy Gun . | . . . . . . . Energy Cannon . | . . . . . . . Ballistic Gun . | . . . . . . . Ballistic Cannon . | . . . . . . . Launcher . | . . . . . . . Special Weapon . | . . . . . . . Impact Weapon . | . . . . . . . Slashing Weapon . | . . . . . . . Piercing Weapon . | . . . . . . . Special Melee Weapon . | . . . . . . . Unidentified Prototypes . | . . . . . . . Parts Lost . | . . . . . . . Power . | . . . . . . . Propulsion . | . . . . . . . Utility . | . . . . . . . Weapon . | . . . . . . . Highest Loss Streak . | . . . . . . . Average Slot Usage (%) . | . . . . . . . Naked Turns 472 | . 34 19 134 60 8 217 Heaviest Build . | . . . . . . . Greatest Support 3 | 3 3 3 3 3 3 3 Greatest Overweight (x) . | . . . . . . . Average Overweight (x) . | . . . . . . . Largest Inventory Capacity 4 | 4 4 4 4 4 4 4 Average Capacity 4 | 4 4 4 4 4 4 4 Most Carried 1 | . . . . 1 1 . Average Carried . | . . . . . 1 . Final Capacity 4 | 4 4 4 4 4 4 4 Final Carried 1 | . . . . 1 1 . Class Distribution -------------------- 100% | Mutant Dominant Class ---------------- Mutant | -10/Materials Mutant | -10/Mines Mutant | -9/Materials Mutant | -9/Mines Mutant | -8/Materials Mutant | -8/Storage Resources | -11 -10 -10 -9 -9 -8 -8 ----------- Run | Scr Mat Min Mat Min Mat Sto Matter Collected 111 | . . . . 97 . 14 Remotely . | . . . . . . . Salvage Created . | . . . . . . . Parts . | . . . . . . . Haulers Intercepted . | . . . . . . . Recyclers Shooed . | . . . . . . . Parts Field Recycled . | . . . . . . . Retrieved Matter . | . . . . . . . Parts Self-Destructed . | . . . . . . . Prevented . | . . . . . . . Kills | -11 -10 -10 -9 -9 -8 -8 ------- Run | Scr Mat Min Mat Min Mat Sto Combat Hostiles Destroyed . | . . . . . . . Classes Destroyed . | . . . . . . . Best Kill Streak . | . . . . . . . Combat Bots Only . | . . . . . . . Max Kills in Single Turn . | . . . . . . . Gunslinging . | . . . . . . . Exploded . | . . . . . . . Melee . | . . . . . . . Uniques/NPCs Destroyed . | . . . . . . . Combat | -11 -10 -10 -9 -9 -8 -8 -------- Run | Scr Mat Min Mat Min Mat Sto Damage Taken 743 | . . . 102 91 . 550 Core 743 | . . . 102 91 . 550 Absorbed by Shields . | . . . . . . . Core Remaining (%) 83 | 100 . 100 . 51 . . Volleys Fired . | . . . . . . . Largest . | . . . . . . . Hottest . | . . . . . . . Shots Fired . | . . . . . . . Gun . | . . . . . . . Cannon . | . . . . . . . Launcher . | . . . . . . . Special . | . . . . . . . Kinetic . | . . . . . . . Thermal . | . . . . . . . Explosive . | . . . . . . . Electromagnetic . | . . . . . . . Robot Hit Streak . | . . . . . . . Robot Miss Streak . | . . . . . . . Penetration Max . | . . . . . . . Secondary Targets . | . . . . . . . Shots Hit Robots . | . . . . . . . Core Hits 1 | . . . . . . 1 Critical Hits . | . . . . . . . Critical Kills . | . . . . . . . Critical Parts Destroyed . | . . . . . . . Melee Attacks . | . . . . . . . Impact . | . . . . . . . Slashing . | . . . . . . . Piercing . | . . . . . . . Sneak Attacks . | . . . . . . . Combat Hostiles . | . . . . . . . Follow-up Attacks . | . . . . . . . Damage Inflicted 5 | . . . . . . 5 Guns . | . . . . . . . Cannons . | . . . . . . . Explosions . | . . . . . . . Melee . | . . . . . . . Ramming 5 | . . . . . . 5 Kinetic . | . . . . . . . Thermal . | . . . . . . . Explosive . | . . . . . . . Electromagnetic . | . . . . . . . Impact . | . . . . . . . Slashing . | . . . . . . . Piercing . | . . . . . . . Highest Corruption 1 | . . . 1 1 . . Average Corruption 1 | . . . 1 1 . . Corruption Purged . | . . . . . . . Effects 1 | . . . . 1 . . Message Errors 1 | . . . . 1 . . Overload Shots . | . . . . . . . Overflow Damage . | . . . . . . . Projectiles . | . . . . . . . Explosions . | . . . . . . . Melee . | . . . . . . . Knockbacks . | . . . . . . . Impact . | . . . . . . . Kinetic . | . . . . . . . Secondary . | . . . . . . . Self-Inflicted Damage 2 | . . . . . . 2 Shots . | . . . . . . . Rammed 1 | . . . . . . 1 Targets Rammed 1 | . . . . . . 1 Kicked . | . . . . . . . Crushed . | . . . . . . . Highest Temperature 12 | . . . . 12 . . Average Temperature 12 | . . . . 12 . . Received Heat Transfer 432 | . . . 48 60 . 324 Siege Activations . | . . . . . . . Robots Corrupted . | . . . . . . . Combat Hostiles . | . . . . . . . Parts Fried . | . . . . . . . Impact Corruptions . | . . . . . . . Robots Melted . | . . . . . . . Combat Hostiles . | . . . . . . . Parts Melted . | . . . . . . . Heat Transferred . | . . . . . . . Parts Sabotaged . | . . . . . . . Parts Stolen . | . . . . . . . Parts Stripped . | . . . . . . . Power Chain Reactions . | . . . . . . . Missiles Intercepted . | . . . . . . . Alert | -11 -10 -10 -9 -9 -8 -8 ------- Run | Scr Mat Min Mat Min Mat Sto Peak Influence 264 | . 38 12 83 56 18 264 Initial 26 | . . 12 3 26 18 6 Average 66 | . 25 12 40 35 18 108 Maximum Alert Level 1 | . . . . . . 1 Low Security (%) 88 | 100 100 100 100 100 100 74 Level 1 11 | . . . . . . 25 Level 2 . | . . . . . . . Level 3 . | . . . . . . . Level 4 . | . . . . . . . Level 5 . | . . . . . . . High Security . | . . . . . . . Max Security . | . . . . . . . Squads Dispatched 3 | . . . 2 . . 1 Investigation 3 | . . . 2 . . 1 Extermination . | . . . . . . . Reinforcement . | . . . . . . . Assault . | . . . . . . . Garrison . | . . . . . . . Intercept . | . . . . . . . Construction Impeded . | . . . . . . . Haulers Reinforced . | . . . . . . . Stealth | -11 -10 -10 -9 -9 -8 -8 --------- Run | Scr Mat Min Mat Min Mat Sto Distress Signals 4 | . . . 1 . 1 2 Communications Jammed . | . . . . . . . Distress Signals . | . . . . . . . Times Spotted 49 | . 3 . 15 15 1 15 Peak Tracking Total 15 | . 3 . 14 15 2 12 Tactical Retreats 4 | . . . . 1 . 3 Traps | -11 -10 -10 -9 -9 -8 -8 ------- Run | Scr Mat Min Mat Min Mat Sto Traps Triggered 2 | . . . . . . 2 Indirectly . | . . . . . . . Trap Hack Attempts . | . . . . . . . Triggered . | . . . . . . . Disarmed . | . . . . . . . Reprogrammed . | . . . . . . . Reused . | . . . . . . . Traps Extracted . | . . . . . . . Installed . | . . . . . . . Triggered . | . . . . . . . Machines | -11 -10 -10 -9 -9 -8 -8 ---------- Run | Scr Mat Min Mat Min Mat Sto Machines Disabled . | . . . . . . . Max in Single Turn . | . . . . . . . Machines Sabotaged . | . . . . . . . Garrisons Compromised . | . . . . . . . Overloaded Fab Kills . | . . . . . . . Fab Network Shutdowns . | . . . . . . . Hacking | -11 -10 -10 -9 -9 -8 -8 --------- Run | Scr Mat Min Mat Min Mat Sto Machines Accessed 8 | . 1 . 3 . . 4 Terminals 6 | . 1 . 2 . . 3 Fabricators . | . . . . . . . Repair Stations . | . . . . . . . Recycling Units . | . . . . . . . Scanalyzers 1 | . . . 1 . . . Garrison Access 1 | . . . . . . 1 Total Hacks 20 | . 3 . 8 . . 9 Successful 13 | . 1 . 5 . . 7 Failed 7 | . 2 . 3 . . 2 Catastrophic 2 | . . . 1 . . 1 Database Lockouts . | . . . . . . . Manual 15 | . 3 . 5 . . 7 Terminals 15 | . 3 . 7 . . 5 Fabricators . | . . . . . . . Repair Stations . | . . . . . . . Recycling Units . | . . . . . . . Scanalyzers 1 | . . . 1 . . . Garrison Access 4 | . . . . . . 4 Terminal Hacks 8 | . 1 . 4 . . 3 Open Door 2 | . . . . . . 2 Level Access Points 2 | . 1 . 1 . . . Recall Investigation 2 | . . . 2 . . . Zone Layout 2 | . . . 1 . . 1 Fabricator Hacks . | . . . . . . . Repair Station Hacks . | . . . . . . . Recycling Unit Hacks . | . . . . . . . Scanalyzer . | . . . . . . . Garrison Access Hacks . | . . . . . . . Unauthorized Hacks 5 | . . . 1 . . 4 Terminals . | . . . . . . . Fabricators . | . . . . . . . Repair Stations . | . . . . . . . Recycling Units . | . . . . . . . Scanalyzers 1 | . . . 1 . . . Extract 1 | . . . 1 . . . Garrison Access 4 | . . . . . . 4 Broadcast 1 | . . . . . . 1 Decoy 1 | . . . . . . 1 Redirect 1 | . . . . . . 1 Intercept 1 | . . . . . . 1 Data Cores Recovered . | . . . . . . . Used . | . . . . . . . Hacking Detections 6 | . 1 . 2 . . 3 Full Trace Events 1 | . . . 1 . . . Feedback Events 1 | . . . 1 . . . Corruption 1 | . . . 1 . . . Feedback Blocked . | . . . . . . . Robot Schematics Acquired . | . . . . . . . Robots Built . | . . . . . . . Matter . | . . . . . . . Time . | . . . . . . . Total Robot Build Rating . | . . . . . . . Part Schematics Acquired 7 | . . . 7 . . . Parts Built . | . . . . . . . Matter . | . . . . . . . Time . | . . . . . . . Total Part Build Rating . | . . . . . . . Parts Repaired . | . . . . . . . Time . | . . . . . . . Parts Recycled . | . . . . . . . Recycled Matter . | . . . . . . . Retrieved Matter . | . . . . . . . Retrieved Components . | . . . . . . . Parts Scanalyzed . | . . . . . . . Part Schematics Acquired . | . . . . . . . Parts Damaged . | . . . . . . . Bothacking | -11 -10 -10 -9 -9 -8 -8 ------------ Run | Scr Mat Min Mat Min Mat Sto Used RIF Installer . | . . . . . . . Robots Hacked . | . . . . . . . Non-combat . | . . . . . . . Combat . | . . . . . . . Robot Hacks Applied . | . . . . . . . Relay Couplers Released . | . . . . . . . Robots Rewired . | . . . . . . . Allies Hacked . | . . . . . . . Hacks Repelled . | . . . . . . . Allies | -11 -10 -10 -9 -9 -8 -8 -------- Run | Scr Mat Min Mat Min Mat Sto Total Allies . | . . . . . . . Largest Group . | . . . . . . . Highest-Rated Group . | . . . . . . . Highest-Rated Ally . | . . . . . . . Total Orders . | . . . . . . . Ally Attacks . | . . . . . . . Total Damage . | . . . . . . . Kills . | . . . . . . . Allies Corrupted . | . . . . . . . Allies Melted . | . . . . . . . Intel | -11 -10 -10 -9 -9 -8 -8 ------- Run | Scr Mat Min Mat Min Mat Sto Robot Analysis Total . | . . . . . . . Derelict Logs Recovered 2 | . . 1 . 1 . . Drone Launches . | . . . . . . . Drone Recoveries . | . . . . . . . Exploration | -11 -10 -10 -9 -9 -8 -8 ------------- Run | Scr Mat Min Mat Min Mat Sto Turns Passed 487 | 15 34 19 134 60 8 217 Spaces Moved 782 | 30 58 38 127 115 15 399 Core 782 | 30 58 38 127 115 15 399 Treads . | . . . . . . . Legs . | . . . . . . . Wheels . | . . . . . . . Hover . | . . . . . . . Flight . | . . . . . . . Fastest Speed 50 | 50 50 50 50 50 50 50 Average Speed 50 | 50 50 50 50 50 50 50 Slowest Speed 50 | 50 50 50 50 50 50 50 Overloaded Moves . | . . . . . . . Propulsion Burnouts . | . . . . . . . Robots Hopped . | . . . . . . . Cave-ins Triggered . | . . . . . . . Exploration Rate (%) 21 | 3 14 14 20 43 3 53 Regions Visited 6 Branch Regions 3 Pre-discovered Areas 1 | . . . . 1 . . Known Exits Taken 2 | . . 1 . 1 . . Unknown Exits Taken 4 | 1 1 . 1 . 1 . Scrap Searched 1 | . . . . 1 . . Spaces Dug . | . . . . . . . Terrain Destroyed . | . . . . . . . Melee . | . . . . . . . Projectile . | . . . . . . . AOE . | . . . . . . . Terrain Rammed . | . . . . . . . Walls Destroyed . | . . . . . . . Machines Disabled . | . . . . . . . Actions | -11 -10 -10 -9 -9 -8 -8 --------- Run | Scr Mat Min Mat Min Mat Sto Total 870 | 29 62 37 196 116 14 416 Wait 92 | . 5 . 70 1 . 16 Move 776 | 29 57 37 126 114 14 399 Hop . | . . . . . . . Pick Up 1 | . . . . 1 . . Fast Attach . | . . . . . . . Attach . | . . . . . . . Detach . | . . . . . . . Swap . | . . . . . . . Drop 1 | . . . . . . 1 Fire . | . . . . . . . Melee . | . . . . . . . Ram . | . . . . . . . Kick . | . . . . . . . Crush . | . . . . . . . Escape Stasis . | . . . . . . . Rewire . | . . . . . . . Trap . | . . . . . . . Miscellaneous . | . . . . . . . Route ------- -11/Scrapyard -10/Materials (discovered 4 exits: Mat x3 / [*Min]) -10/Mines -9/Materials (discovered 4 exits: Mat x3 / [*Min]) -9/Mines -8/Materials -8/Storage History --------- Turn | Location | Event 2 | -11/Scrapyard | Met Revision 17 3 | -11/Scrapyard | Discovered new exit (range 15) 16 | -11/Scrapyard | Entered Materials 23 | -10/Materials | Identified exit to Materials 47 | -10/Materials | Discovered new exit (range 8) 50 | -10/Materials | Entered Mines 54 | -10/Mines | Learned 4 Materials zone layouts 62 | -10/Mines | Discovered exit to Materials (range 12) 69 | -10/Mines | Entered Materials 69 | -9/Materials | Evolved 2 slots: Power x1, Propulsion x1 174 | -9/Materials | Identified exit to Materials 179 | -9/Materials | Discovered new exit (range 19) 203 | -9/Materials | Entered Mines 208 | -9/Mines | Learned location of Zion (-6) 212 | -9/Mines | Assembled infested the area 257 | -9/Mines | Discovered exit to Materials (range 14) 263 | -9/Mines | Entered Materials 263 | -8/Materials | Evolved 2 slots: Power x1, Propulsion x1 263 | -8/Materials | Discovered new exit (range 14) 271 | -8/Materials | Entered Storage 311 | -8/Storage | Build established: Mutant 396 | -8/Storage | Core integrity fell below 50% 444 | -8/Storage | Core integrity fell below 20% 488 | -8/Storage | Core destroyed Last Messages --------------- >>Trojan(Broadcast) Trojan loaded successfully. Testing... Broadcasting enabled and active. >>Trojan(Redirect) Trojan loaded successfully. Testing... Redirection algorithm responsive and awaiting execution trigger. 00434_ K-01 Serf collects debris. 00450_ Triggered Blade Trap. 00450_ Massive razor-sharp blades shoot up from within the floor. 00452_ Triggered Alarm Trap. 00452_ An alarm sounds. 00452_ ALERT: Alarm triggered, dispatching investigation squad. 00452_ >> BROADCAST: Garrison Access S001 dispatching Investigation squad: H-55 Commando. 00466_ U-05 Engineer lays Concrete. 00472_ Penetrated by Slug. 00486_ W-25 Informer distress signal alerts nearby ally. 00488_ Slammed into S-10 Pest. Map ----- +----------------------------------------------------+ | ?????????????????????????????????????????????????? | | ?????????????????????????????????????????????????? | | ?????????????????????????????????????????????????? | | ?????????????????????????????????????????????????? | | ?????????????????????????????????????????????????? | | ?????????????????????????????????????????????????? | | ?????????????????????????????????????????????????? | | ?????????????????????????????????????????????????? | | ?????????????????????????????????????????????????? | | ?????????????????????????????????????????????????? | | ?????????????????????????????????????????????????? | | ?????????????????????????????????????????????????? | | ?????????????????????????????????????????????????? | | ?????????????????????????????????????????????????? | | ?????????????????????????????????????????????????? | | ?????????????????????????????????????????????????? | | ?????????????????????????????????????????????????? | | ?????????????????????????????????????????????????? | | ?????????????????###???####??????????????????????? | | ?????????????????/ ???? #??????????????????????? | | ?????????????????# ???? #??????????????????????? | | ?????????????????# "???? #??????????????????????? | | ?????????????????# "???? #??????????????????????? | | ?????????????????# "????"aw??????????????????????? | | ?????????????????# ""???"s#??????????????????????? | | ????????????????# ""??"@#??????????????????????? | | #????????????????# """" #??????????????????????? | | #????????????????# #??????????????????????? | | #????????????????##/#######??????????????????????? | | #?????????????????# #????????????????????????????? | | #?????????????????# #????????????????????????????? | | #?????????????????# #????????????????????????????? | | #############?????# #????????????????????????????? | | #?????# #????????????????????????????? | | ####### #???############?????????????? | | ^ ^ ^ #???# #?????????????? | | ####### ^ #???# #??????????????? | | ## # ^""" """ ##### #??????????????? | | ##!] !# """ """ ## "" #??????????????? | | #? # """ """ ##"G """ """ #??????????????? | | #? # ## "" """ """ #??????????????? | | #?? + ##### """ """ #??????????????? | | #??* # ######## #???# #??????????????? | | ####+## #??????# #########+###########????????? | | + #??????# #?""" #????????? | | #### #??????# ######## #?"R" #????????? | | #??# ########/########+## # " " #????????? | | ???# + # # #????????? | | ???####+###### / + #????????? | | ???# #?# ! # # """"" #????????? | +----------------------------------------------------+ Best States ------------- Heat Dissipation 31 Energy Generation 5 Energy Capacity 100 Matter Stores 211 Matter Capacity 300 Sight Range 16 Terrain Scan Density 10 Resistance: KI 20 Resistance: TH 20 Resistance: EX 20 Resistance: EM 20 Resistance: I 20 Resistance: S 20 Resistance: P 20 Evasion (%) 50 Offensive Hacking 10 Item Schematics ----------------- Imp. Treads | -9/Materials | Extracted EM Pulse Gun | -9/Materials | Extracted Hpw. Tractor Beam | -9/Materials | Extracted Hover Unit | -9/Materials | Extracted Field Recycling Unit | -9/Materials | Extracted Rocket Launcher | -9/Materials | Extracted Hvy. Assault Rifle | -9/Materials | Extracted Robot Schematics ------------------ None Fabricated ------------ Nothing Alien Tech Used ----------------- None Achievements -------------- None Challenges ------------ None Game ------ Seed GravityStormPropulsion Manual? 0 Play Time 00:14:55 Cumulative 52.4 hours Start 2021.08.10 @ 22:13:16 End 2021.08.10 @ 22:29:55 Sessions 1 Manual Loads 0 Difficulty Adventurer Special Mode None Game No. 15 Rogue 1 Adventurer 13 Explorer 1 Win Type - Total 0 Types 0/0/0/0/0/0/0/0/0 Lore% 31 Gallery% 43 Achievement% 33 Wizard Run 0 Options --------- ASCII 0 Keyboard 0 Movement Mouse Keybinds 0 Fullscreen 2 Font 18/X11 Map View 76x50 Tactical HUD 1 Map Filters NONE Filters NONE Steam 1 RUN: 080b105c-57f7-4e60-9de6-3e38f11a5cb3